[Event "Polugaevsky Memorial 2019"]
[Site "Samara"]
[Date "2019.07.12"]
[Round "3.10"]
[White "Gorshkov, Yury S."]
[Black "Utegaliyev, Azamat"]
[Result "0-1"]
[ECO "A05"]
[WhiteElo "2118"]
[BlackElo "2510"]
[Annotator "ChessBase"]
[PlyCount "71"]
[EventDate "2019.07.10"]
[EventType "swiss"]
[EventCountry "RUS"]
[SourceTitle "playchess.com"]
[Source "ChessBase"]
[SourceQuality "1"]
[TimeControl "5400+30"]

1. Nf3 {[%emt 0:04:06]} Nf6 {[%emt 0:01:41]} 2. c4 {[%emt 0:00:21]} g6 {[%emt 0:00:07]} 3. b4 {[%emt 0:02:24]} Bg7 {[%emt 0:00:10]} 4. Bb2 {[%emt 0:00:10]} O-O {[%emt 0:00:56]} 5. g3 {[%emt 0:00:13]} b6 {[%emt 0:03:04]} 6. Bg2 {[%emt 0:00:20]} Bb7 {[%emt 0:00:05]} 7. O-O {[%emt 0:00:43]} d6 {[%emt 0:00:20]} 8. d3 {[%emt 0:01:04]} Nbd7 {[%emt 0:00:28]} 9. Nc3 {[%emt 0:08:05]} a6 {[%emt 0:09:08]} 10. a3 {[%emt 0:03:27]} h6 {[%emt 0:02:40]} 11. Qb3 {[%emt 0:06:58]} Qc8 {[%emt 0:03:03]} 12. e4 {[%emt 0:14:47]} e6 {[%emt 0:06:16]} 13. Rad1 {[%emt 0:03:56]} c5 {[%emt 0:00:29]} 14. Rfe1 {[%emt 0:10:41]} Qc7 {[%emt 0:05:04]} 15. h3 {[%emt 0:02:08]} Rab8 {[%emt 0:00:33]} 16. b5 {[%emt 0:01:07]} a5 {[%emt 0:01:22]} 17. Nh2 {[%emt 0:11:31]} Rbd8 {[%emt 0:03:09]} 18. f4 {[%emt 0:05:03]} Rfe8 {[%emt 0:00:25]} 19. Nf3 {[%emt 0:01:15]} Nf8 {[%emt 0:00:59]} 20. g4 {[%emt 0:05:21]} N6h7 {[%emt 0:03:58]} 21. Ne2 {[%emt 0:05:36]} Bxb2 {[%emt 0:00:48]} 22. Qxb2 {[%emt 0:00:03]} d5 {[%emt 0:00:08]} 23. cxd5 {[%emt 0:01:02]} exd5 {[%emt 0:00:06]} 24. e5 {[%emt 0:00:08]} d4 {[%emt 0:00:17]} 25. Ng3 {[%emt 0:00:49]} Ne6 26. Qd2 {[%emt 0:01:53]} g5 {[%emt 0:04:45]} 27. fxg5 Bxf3 {[%emt 0:05:57]} 28. Bxf3 {[%emt 0:00:32]} Nexg5 {[%emt 0:00:36]} 29. Bg2 {[%emt 0:00:42]} Rxe5 {[%emt 0:00:16]} 30. Nf5 {[%emt 0:00:31]} Rxf5 {[%emt 0:03:01]} 31. gxf5 {[%emt 0:00:28]} Qg3 {[%emt 0:00:04]} 32. Kh1 {[%emt 0:00:28]} Nf6 {[%emt 0:00:07]} 33. Bc6 {[%emt 0:03:51]} Kh7 {[%emt 0:01:42]} 34. Qh2 {[%emt 0:03:32]} Qh4 {[%emt 0:00:19]} 35. Bg2 {[%emt 0:00:19]} Nh5 {[%emt 0:06:01]} 36. Qc7 {[%emt 0:01:12]} 0-1

[Event "Polugaevsky Memorial 2019"]
[Site "Samara"]
[Date "2019.07.13"]
[Round "4.1"]
[White "Kopylov, Alexander A."]
[Black "Goganov, Aleksey"]
[Result "1-0"]
[ECO "A28"]
[WhiteElo "2410"]
[BlackElo "2561"]
[Annotator "ChessBase"]
[PlyCount "71"]
[EventDate "2019.07.10"]
[EventType "swiss"]
[EventCountry "RUS"]
[SourceTitle "playchess.com"]
[Source "ChessBase"]
[SourceQuality "1"]
[TimeControl "5400+30"]

1. c4 {[%emt 0:00:00]} e5 {[%emt 0:00:00]} 2. Nc3 {[%emt 0:00:00]} Nf6 {[%emt 0:00:00]} 3. Nf3 {[%emt 0:00:20]} Nc6 {[%emt 0:00:00]} 4. e3 {[%emt 0:00:04]} Bb4 {[%emt 0:02:55]} 5. Qc2 {[%emt 0:00:40]} Bxc3 {[%emt 0:03:52]} 6. bxc3 {[%emt 0:01:47]} O-O {[%emt 0:00:10]} 7. e4 {[%emt 0:10:34]} d6 {[%emt 0:00:11]} 8. d3 {[%emt 0:01:04]} Nd7 {[%emt 0:01:17]} 9. Be2 {[%emt 0:03:23]} Qe7 {[%emt 0:13:03]} 10. O-O {[%emt 0:14:36]} Nc5 {[%emt 0:00:52]} 11. Be3 {[%emt 0:00:34]} f5 {[%emt 0:07:51]} 12. exf5 {[%emt 0:02:08]} Bxf5 {[%emt 0:00:21]} 13. Bxc5 {[%emt 0:03:05]} dxc5 {[%emt 0:00:04]} 14. Rfe1 {[%emt 0:00:16]} Rad8 {[%emt 0:07:00]} 15. Bf1 {[%emt 0:04:47]} e4 {[%emt 0:13:45]} 16. Qb2 {[%emt 0:16:38]} Rd6 {[%emt 0:10:40]} 17. Re3 {[%emt 0:15:25]} Re6 {[%emt 0:07:41]} 18. dxe4 {[%emt 0:02:05]} Bxe4 {[%emt 0:00:07]} 19. Nd2 {[%emt 0:05:25]} Bg6 {[%emt 0:01:59]} 20. Rae1 {[%emt 0:03:44]} Rxe3 {[%emt 0:00:07]} 21. Rxe3 {[%emt 0:00:05]} Qd6 {[%emt 0:00:19]} 22. Ne4 {[%emt 0:00:59]} Bxe4 {[%emt 0:05:55]} 23. Rxe4 {[%emt 0:00:13]} Qf6 {[%emt 0:00:32]} 24. Qd2 {[%emt 0:05:33]} Ne5 {[%emt 0:01:09]} 25. Qd5+ {[%emt 0:01:33]} Nf7 {[%emt 0:04:06]} 26. Qxc5 {[%emt 0:02:30]} Nd6 {[%emt 0:01:39]} 27. Re2 {[%emt 0:01:13]} Qxc3 {[%emt 0:00:37]} 28. Qxc7 {[%emt 0:03:58]} Qd4 {[%emt 0:00:19]} 29. c5 {[%emt 0:00:23]} Ne4 {[%emt 0:02:07]} 30. Qxb7 {[%emt 0:00:08]} Nd2 {[%emt 0:01:58]} 31. c6 {[%emt 0:01:34]} Nxf1 {[%emt 0:00:19]} 32. Qb3+ {[%emt 0:00:11]} Kh8 {[%emt 0:00:03]} 33. Qf7 {[%emt 0:00:49]} Qd8 {[%emt 0:00:13]} 34. c7 {[%emt 0:00:15]} Qc8 {[%emt 0:00:15]} 35. Qxf8+ {[%emt 0:00:20]} Qxf8 {[%emt 0:00:04]} 36. Rb2 {[%emt 0:00:04]} 1-0

[Event "Polugaevsky Memorial 2019"]
[Site "Samara"]
[Date "2019.07.13"]
[Round "4.2"]
[White "Rodchenkov, Vitaly"]
[Black "Ovetchkin, Roman"]
[Result "1/2-1/2"]
[ECO "A05"]
[WhiteElo "2302"]
[BlackElo "2538"]
[Annotator "ChessBase"]
[PlyCount "82"]
[EventDate "2019.07.10"]
[EventType "swiss"]
[EventCountry "RUS"]
[SourceTitle "playchess.com"]
[Source "ChessBase"]
[SourceQuality "1"]
[TimeControl "5400+30"]

1. Nf3 {[%emt 0:00:00]} Nf6 {[%emt 0:03:58]} 2. c4 {[%emt 0:03:31]} g6 {[%emt 0:02:33]} 3. g3 {[%emt 0:03:02]} Bg7 {[%emt 0:00:10]} 4. Bg2 {[%emt 0:00:05]} O-O {[%emt 0:00:31]} 5. O-O {[%emt 0:00:06]} d6 {[%emt 0:02:54]} 6. Nc3 {[%emt 0:01:03]} e5 {[%emt 0:09:44]} 7. d3 {[%emt 0:00:16]} c6 {[%emt 0:02:53]} 8. Rb1 {[%emt 0:12:46]} a5 {[%emt 0:07:03]} 9. a3 {[%emt 0:23:57]} Re8 {[%emt 0:06:42]} 10. b4 {[%emt 0:00:11]} axb4 {[%emt 0:00:12]} 11. axb4 {[%emt 0:00:01]} d5 {[%emt 0:07:51]} 12. Qb3 {[%emt 0:01:38]} e4 {[%emt 0:10:10]} 13. dxe4 {[%emt 0:02:18]} dxe4 {[%emt 0:06:48]} 14. Rd1 {[%emt 0:00:33]} Qe7 {[%emt 0:00:14]} 15. Nd4 {[%emt 0:00:34]} Qe5 {[%emt 0:01:37]} 16. Na4 {[%emt 0:06:25]} Nbd7 {[%emt 0:01:58]} 17. Bf4 {[%emt 0:01:33]} Qh5 {[%emt 0:03:14]} 18. f3 {[%emt 0:02:48]} Bh6 {[%emt 0:06:54]} 19. Bxh6 {[%emt 0:09:29]} Qxh6 {[%emt 0:00:07]} 20. Nc2 {[%emt 0:00:27]} Qh5 {[%emt 0:03:53]} 21. Rd6 {[%emt 0:11:33]} exf3 {[%emt 0:06:43]} 22. exf3 {[%emt 0:00:41]} Kg7 {[%emt 0:00:17]} 23. Rbd1 {[%emt 0:03:20]} Re2 {[%emt 0:08:50]} 24. Nc3 {[%emt 0:02:06]} Re7 {[%emt 0:00:29]} 25. Nd4 {[%emt 0:02:40]} Qe5 {[%emt 0:03:14]} 26. Nc2 {[%emt 0:04:11]} Nb6 {[%emt 0:02:40]} 27. c5 {[%emt 0:02:18]} Nbd5 {[%emt 0:00:50]} 28. Nxd5 {[%emt 0:00:39]} Nxd5 {[%emt 0:00:10]} 29. f4 {[%emt 0:01:50]} Qh5 {[%emt 0:00:11]} 30. R1xd5 {[%emt 0:00:12]} cxd5 {[%emt 0:00:20]} 31. Qc3+ {[%emt 0:01:26]} Kh6 {[%emt 0:00:20]} 32. Rxd5 {[%emt 0:00:46]} Bf5 {[%emt 0:00:34]} 33. Bf3 {[%emt 0:00:36]} Qh3 {[%emt 0:00:14]} 34. Ne3 {[%emt 0:01:59]} Rxe3 {[%emt 0:00:25]} 35. Qxe3 {[%emt 0:00:06]} Ra1+ {[%emt 0:00:16]} 36. Rd1 {[%emt 0:00:13]} Ra2 {[%emt 0:00:06]} 37. Rd2 {[%emt 0:01:05]} Ra1+ {[%emt 0:00:01]} 38. Rd1 {[%emt 0:00:26]} Ra2 {[%emt 0:00:01]} 39. Rd2 {[%emt 0:00:09]} Ra1+ {[%emt 0:00:07]} 40. Rd1 {[%emt 0:00:00]} Ra2 {[%emt 0:00:00]} 41. Rd2 Ra1+ 1/2-1/2

[Event "Polugaevsky Memorial 2019"]
[Site "Samara"]
[Date "2019.07.13"]
[Round "4.3"]
[White "Utegaliyev, Azamat"]
[Black "Karpeshov, Oleg"]
[Result "1-0"]
[ECO "A36"]
[WhiteElo "2510"]
[BlackElo "2286"]
[Annotator "ChessBase"]
[PlyCount "80"]
[EventDate "2019.07.10"]
[EventType "swiss"]
[EventCountry "RUS"]
[SourceTitle "playchess.com"]
[Source "ChessBase"]
[SourceQuality "1"]
[TimeControl "5400+30"]

1. g3 {[%emt 0:15:22]} g6 {[%emt 0:00:09]} 2. Bg2 {[%emt 0:00:13]} Bg7 {[%emt 0:00:11]} 3. c4 {[%emt 0:00:36]} c5 {[%emt 0:03:05]} 4. Nc3 {[%emt 0:00:08]} Nc6 {[%emt 0:00:16]} 5. b3 {[%emt 0:00:05]} e6 {[%emt 0:03:46]} 6. Bb2 {[%emt 0:02:37]} Nge7 {[%emt 0:01:35]} 7. Nf3 {[%emt 0:00:20]} d5 {[%emt 0:06:02]} 8. cxd5 {[%emt 0:05:21]} exd5 {[%emt 0:01:25]} 9. Na4 {[%emt 0:00:40]} Bxb2 {[%emt 0:01:29]} 10. Nxb2 {[%emt 0:00:05]} Bg4 {[%emt 0:05:56]} 11. h3 {[%emt 0:03:54]} Bxf3 {[%emt 0:00:26]} 12. Bxf3 {[%emt 0:00:05]} Qd6 {[%emt 0:00:23]} 13. O-O {[%emt 0:00:34]} O-O {[%emt 0:08:15]} 14. Bg2 {[%emt 0:03:16]} Rab8 {[%emt 0:03:09]} 15. e3 {[%emt 0:05:18]} b5 {[%emt 0:07:19]} 16. Nd3 {[%emt 0:02:46]} Rfc8 {[%emt 0:09:06]} 17. Nf4 {[%emt 0:01:07]} d4 {[%emt 0:01:16]} 18. Qc2 {[%emt 0:08:49]} Nb4 {[%emt 0:07:07]} 19. Qb2 {[%emt 0:03:27]} d3 {[%emt 0:08:29]} 20. Rac1 {[%emt 0:00:31]} c4 {[%emt 0:03:14]} 21. Qa3 {[%emt 0:01:47]} Qc5 {[%emt 0:15:50]} 22. bxc4 {[%emt 0:03:07]} bxc4 {[%emt 0:00:20]} 23. Rb1 {[%emt 0:00:12]} a5 {[%emt 0:01:45]} 24. h4 {[%emt 0:04:42]} Qe5 {[%emt 0:01:58]} 25. Qa4 {[%emt 0:00:25]} Qc5 {[%emt 0:02:27]} 26. Rfc1 {[%emt 0:04:12]} Nc2 {[%emt 0:01:30]} 27. Qd7 {[%emt 0:00:17]} Rxb1 {[%emt 0:02:13]} 28. Rxb1 {[%emt 0:00:11]} Qc7 {[%emt 0:00:39]} 29. Qa4 {[%emt 0:01:13]} Qe5 {[%emt 0:03:05]} 30. Bh3 {[%emt 0:01:37]} Nf5 {[%emt 0:00:42]} 31. Qd7 {[%emt 0:01:37]} Rb8 {[%emt 0:01:09]} 32. Rxb8+ {[%emt 0:01:27]} Qxb8 {[%emt 0:00:07]} 33. Bxf5 {[%emt 0:00:04]} Qb1+ {[%emt 0:01:01]} 34. Kh2 {[%emt 0:08:17]} Qf1 {[%emt 0:00:20]} 35. Be4 {[%emt 0:02:09]} Qxf2+ {[%emt 0:00:15]} 36. Kh3 {[%emt 0:00:03]} Ne1 {[%emt 0:01:08]} 37. Bd5 {[%emt 0:00:32]} Qf1+ {[%emt 0:00:29]} 38. Kg4 {[%emt 0:00:09]} h5+ {[%emt 0:00:25]} 39. Kg5 {[%emt 0:00:08]} Nf3+ 40. Kf6 Ne1 {[%emt 0:01:59]} 1-0

[Event "Polugaevsky Memorial 2019"]
[Site "Samara"]
[Date "2019.07.13"]
[Round "4.4"]
[White "Gabrielian, Artur"]
[Black "Gusarov, Aleksey"]
[Result "1/2-1/2"]
[ECO "B31"]
[WhiteElo "2458"]
[BlackElo "2258"]
[Annotator "ChessBase"]
[PlyCount "100"]
[EventDate "2019.07.10"]
[EventType "swiss"]
[EventCountry "RUS"]
[SourceTitle "playchess.com"]
[Source "ChessBase"]
[SourceQuality "1"]
[TimeControl "5400+30"]

1. e4 {[%emt 0:00:00]} c5 {[%emt 0:00:00]} 2. Nf3 {[%emt 0:00:46]} Nc6 {[%emt 0:00:00]} 3. Bb5 {[%emt 0:01:03]} g6 {[%emt 0:00:09]} 4. O-O {[%emt 0:01:31]} Bg7 {[%emt 0:01:06]} 5. Re1 {[%emt 0:00:40]} e5 {[%emt 0:03:56]} 6. Bxc6 {[%emt 0:00:33]} dxc6 {[%emt 0:00:16]} 7. d3 {[%emt 0:00:23]} Qc7 {[%emt 0:02:57]} 8. Be3 {[%emt 0:01:28]} b6 {[%emt 0:00:11]} 9. a4 {[%emt 0:01:24]} a5 {[%emt 0:00:14]} 10. Nbd2 {[%emt 0:07:16]} Ne7 {[%emt 0:08:46]} 11. Nc4 {[%emt 0:01:01]} h6 {[%emt 0:01:09]} 12. b4 {[%emt 0:03:54]} b5 {[%emt 0:08:37]} 13. axb5 {[%emt 0:09:35]} cxb5 {[%emt 0:00:59]} 14. Nxa5 {[%emt 0:05:17]} cxb4 {[%emt 0:00:12]} 15. Nb3 {[%emt 0:01:24]} Rxa1 {[%emt 0:00:37]} 16. Qxa1 {[%emt 0:01:06]} Qxc2 {[%emt 0:05:50]} 17. Nc5 {[%emt 0:03:06]} b3 {[%emt 0:02:30]} 18. Nd2 {[%emt 0:14:31]} b2 {[%emt 0:07:28]} 19. Qa7 {[%emt 0:11:35]} f5 {[%emt 0:07:48]} 20. Nb1 {[%emt 0:09:15]} Kf7 {[%emt 0:19:47]} 21. Qa2+ {[%emt 0:04:02]} Kf6 {[%emt 0:00:21]} 22. Na3 {[%emt 0:05:24]} Qc3 {[%emt 0:00:50]} 23. Rb1 {[%emt 0:00:37]} f4 {[%emt 0:01:36]} 24. Nxb5 {[%emt 0:01:17]} Qc2 {[%emt 0:06:06]} 25. Na3 {[%emt 0:06:14]} Qe2 {[%emt 0:00:52]} 26. Nc4 {[%emt 0:08:09]} fxe3 {[%emt 0:00:23]} 27. Nxe3 {[%emt 0:00:20]} Qd2 {[%emt 0:01:36]} 28. Qc4 {[%emt 0:01:20]} Rd8 {[%emt 0:01:59]} 29. Nf1 {[%emt 0:00:38]} Qa5 {[%emt 0:06:09]} 30. Rxb2 {[%emt 0:00:20]} Rd4 {[%emt 0:01:14]} 31. Qc1 {[%emt 0:00:45]} Rb4 {[%emt 0:01:26]} 32. Rc2 {[%emt 0:00:33]} Kf7 {[%emt 0:01:08]} 33. h4 {[%emt 0:00:28]} Qb5 {[%emt 0:02:52]} 34. Nd2 {[%emt 0:00:28]} Nc6 {[%emt 0:01:00]} 35. Ncb3 {[%emt 0:00:25]} Bd7 {[%emt 0:00:50]} 36. Rc5 {[%emt 0:00:28]} Qb7 {[%emt 0:02:52]} 37. Rd5 {[%emt 0:00:28]} Be8 {[%emt 0:01:30]} 38. Nc5 {[%emt 0:00:37]} Qe7 {[%emt 0:00:33]} 39. Nf3 {[%emt 0:00:37]} Nd4 {[%emt 0:00:58]} 40. Nxd4 {[%emt 0:00:00]} exd4 {[%emt 0:00:00]} 41. h5 {[%emt 0:00:00]} g5 {[%emt 0:00:00]} 42. Qa3 {[%emt 0:00:00]} Rb1+ {[%emt 0:00:00]} 43. Kh2 {[%emt 0:00:00]} Be5+ {[%emt 0:00:00]} 44. g3 {[%emt 0:00:00]} Kg7 {[%emt 0:00:00]} 45. Qa2 {[%emt 0:00:00]} Rc1 {[%emt 0:00:00]} 46. Nb3 {[%emt 0:00:00]} Rc3 {[%emt 0:00:00]} 47. Nxd4 {[%emt 0:00:00]} Bxd4 {[%emt 0:00:00]} 48. Rxd4 {[%emt 0:00:00]} Qf6 {[%emt 0:00:00]} 49. Qa7+ {[%emt 0:00:00]} Bf7 {[%emt 0:00:00]} 50. Rd5 {[%emt 0:00:00]} Ra3 {[%emt 0:02:58]} 1/2-1/2

[Event "Polugaevsky Memorial 2019"]
[Site "Samara"]
[Date "2019.07.13"]
[Round "4.6"]
[White "Gaifullin, Artur"]
[Black "Lysenko, Margarita"]
[Result "1-0"]
[ECO "E12"]
[WhiteElo "2453"]
[BlackElo "2224"]
[Annotator "ChessBase"]
[PlyCount "119"]
[EventDate "2019.07.10"]
[EventType "swiss"]
[EventCountry "RUS"]
[SourceTitle "playchess.com"]
[Source "ChessBase"]
[SourceQuality "1"]
[TimeControl "5400+30"]

1. Nf3 {[%emt 0:00:00]} Nf6 {[%emt 0:00:00]} 2. c4 {[%emt 0:00:00]} e6 {[%emt 0:00:00]} 3. d4 {[%emt 0:00:00]} b6 {[%emt 0:00:13]} 4. a3 {[%emt 0:00:00]} Bb7 {[%emt 0:00:19]} 5. Nc3 {[%emt 0:00:00]} d5 {[%emt 0:00:13]} 6. Qc2 {[%emt 0:00:05]} Be7 {[%emt 0:09:58]} 7. cxd5 {[%emt 0:00:07]} Nxd5 {[%emt 0:00:36]} 8. Bd2 {[%emt 0:00:05]} Nxc3 {[%emt 0:07:58]} 9. Bxc3 {[%emt 0:00:07]} Qd5 {[%emt 0:00:41]} 10. g3 {[%emt 0:07:36]} Qe4 {[%emt 0:21:32]} 11. Qa4+ {[%emt 0:03:28]} Bc6 {[%emt 0:01:57]} 12. Qd1 {[%emt 0:00:03]} Bd5 {[%emt 0:08:45]} 13. Bg2 {[%emt 0:00:09]} h6 {[%emt 0:01:45]} 14. O-O {[%emt 0:00:33]} O-O {[%emt 0:00:51]} 15. Re1 {[%emt 0:01:26]} Nd7 {[%emt 0:05:26]} 16. Nh4 {[%emt 0:01:12]} Qg4 {[%emt 0:04:44]} 17. Nf5 {[%emt 0:12:30]} exf5 {[%emt 0:11:59]} 18. Bxd5 {[%emt 0:00:07]} Rad8 {[%emt 0:00:05]} 19. Bf3 {[%emt 0:00:35]} Qg6 {[%emt 0:01:05]} 20. Qa4 {[%emt 0:11:52]} a5 {[%emt 0:01:25]} 21. b4 axb4 {[%emt 0:00:50]} 22. Bxb4 {[%emt 0:07:41]} Bxb4 {[%emt 0:02:18]} 23. axb4 {[%emt 0:00:09]} Nf6 {[%emt 0:03:16]} 24. b5 {[%emt 0:00:07]} f4 {[%emt 0:05:35]} 25. Bg2 {[%emt 0:02:46]} fxg3 {[%emt 0:03:37]} 26. hxg3 {[%emt 0:00:06]} h5 {[%emt 0:00:17]} 27. e4 {[%emt 0:05:56]} h4 {[%emt 0:01:26]} 28. Ra3 {[%emt 0:00:49]} Nh5 {[%emt 0:01:24]} 29. Qc4 {[%emt 0:09:16]} hxg3 {[%emt 0:00:31]} 30. fxg3 {[%emt 0:00:02]} Qd6 {[%emt 0:03:08]} 31. Rd3 {[%emt 0:01:25]} Nxg3 {[%emt 0:00:57]} 32. e5 {[%emt 0:01:27]} Qg6 {[%emt 0:00:09]} 33. d5 {[%emt 0:00:07]} Rfe8 {[%emt 0:01:25]} 34. Rd4 {[%emt 0:02:56]} Nf5 {[%emt 0:00:29]} 35. Rg4 {[%emt 0:01:34]} Qh6 {[%emt 0:00:39]} 36. Qe4 {[%emt 0:15:08]} Ne7 {[%emt 0:01:07]} 37. Rh4 {[%emt 0:07:05]} Qg6 {[%emt 0:00:27]} 38. Qf3 {[%emt 0:00:09]} Nf5 {[%emt 0:01:16]} 39. Rg4 {[%emt 0:01:20]} Qh7 {[%emt 0:00:21]} 40. Qf4 {[%emt 0:00:00]} Nh6 {[%emt 0:00:00]} 41. Be4 {[%emt 0:00:00]} g6 {[%emt 0:00:00]} 42. Rg5 {[%emt 0:00:00]} Kh8 {[%emt 0:00:00]} 43. Rh5 {[%emt 0:00:00]} gxh5 {[%emt 0:00:00]} 44. Bxh7 {[%emt 0:00:00]} Kxh7 {[%emt 0:00:00]} 45. Qe4+ {[%emt 0:00:00]} f5 {[%emt 0:00:17]} 46. Qc4 {[%emt 0:00:00]} Re7 {[%emt 0:00:31]} 47. e6 {[%emt 0:00:00]} Rg8+ {[%emt 0:01:11]} 48. Kh1 {[%emt 0:00:00]} Rg4 {[%emt 0:00:33]} 49. Qc3 {[%emt 0:00:00]} Ng8 {[%emt 0:01:28]} 50. Qe5 {[%emt 0:00:00]} Kg6 {[%emt 0:01:41]} 51. Rc1 {[%emt 0:00:00]} Re4 {[%emt 0:00:22]} 52. Rg1+ {[%emt 0:00:31]} Rg4 {[%emt 0:00:07]} 53. Rf1 {[%emt 0:00:31]} Nh6 {[%emt 0:00:39]} 54. Rc1 {[%emt 0:03:22]} Re4 {[%emt 0:00:20]} 55. Qg3+ {[%emt 0:02:03]} Rg4 {[%emt 0:00:27]} 56. Qe5 {[%emt 0:02:52]} Re4 {[%emt 0:00:13]} 57. Qh8 {[%emt 0:00:29]} Rg7 {[%emt 0:01:03]} 58. e7 {[%emt 0:06:08]} Rexe7 {[%emt 0:00:51]} 59. Rc6+ {[%emt 0:00:05]} Kf7 {[%emt 0:00:10]} 60. Qxh6 {[%emt 0:00:04]} 1-0

[Event "Polugaevsky Memorial 2019"]
[Site "Samara"]
[Date "2019.07.14"]
[Round "5.1"]
[White "Utegaliyev, Azamat"]
[Black "Kopylov, Alexander A."]
[Result "1-0"]
[ECO "A05"]
[WhiteElo "2510"]
[BlackElo "2410"]
[Annotator "ChessBase"]
[PlyCount "59"]
[EventDate "2019.07.10"]
[EventType "swiss"]
[EventCountry "RUS"]
[SourceTitle "playchess.com"]
[Source "ChessBase"]
[SourceQuality "1"]
[TimeControl "5400+30"]

1. Nf3 {[%emt 0:00:00]} Nf6 {[%emt 0:00:00]} 2. b4 {[%emt 0:01:58]} d5 {[%emt 0:09:46]} 3. e3 {[%emt 0:02:22]} Bg4 {[%emt 0:20:48]} 4. Bb2 {[%emt 0:02:55]} Nbd7 {[%emt 0:05:25]} 5. c4 {[%emt 0:03:01]} e5 {[%emt 0:06:20]} 6. cxd5 {[%emt 0:09:19]} e4 {[%emt 0:10:06]} 7. h3 {[%emt 0:00:56]} Bh5 {[%emt 0:00:52]} 8. g4 {[%emt 0:00:14]} Bg6 {[%emt 0:01:23]} 9. Nh4 {[%emt 0:01:34]} Nxd5 {[%emt 0:00:59]} 10. Nxg6 {[%emt 0:01:21]} hxg6 {[%emt 0:00:04]} 11. a3 {[%emt 0:01:48]} Qe7 {[%emt 0:17:46]} 12. d3 {[%emt 0:06:12]} O-O-O {[%emt 0:05:04]} 13. Bg2 {[%emt 0:00:52]} Ne5 {[%emt 0:01:07]} 14. Bxe4 {[%emt 0:36:54]} Nf6 {[%emt 0:02:37]} 15. Bxe5 {[%emt 0:00:44]} Qxe5 {[%emt 0:05:49]} 16. Nd2 {[%emt 0:00:05]} Nxe4 {[%emt 0:00:19]} 17. dxe4 {[%emt 0:00:30]} g5 {[%emt 0:07:23]} 18. Rc1 {[%emt 0:04:17]} Rh6 {[%emt 0:00:23]} 19. Qb3 {[%emt 0:01:12]} Rf6 {[%emt 0:02:17]} 20. Qc3 {[%emt 0:01:56]} Qxc3 {[%emt 0:00:14]} 21. Rxc3 {[%emt 0:00:04]} Rfd6 {[%emt 0:00:05]} 22. Rc2 {[%emt 0:00:12]} Rd3 {[%emt 0:00:59]} 23. Ra2 {[%emt 0:02:10]} c5 {[%emt 0:00:57]} 24. b5 {[%emt 0:08:00]} f6 {[%emt 0:00:44]} 25. Ke2 {[%emt 0:00:25]} Kc7 {[%emt 0:00:06]} 26. Rc1 {[%emt 0:01:21]} Kb6 {[%emt 0:00:04]} 27. a4 {[%emt 0:03:13]} Ka5 {[%emt 0:00:08]} 28. Rb2 {[%emt 0:01:31]} Kxa4 {[%emt 0:00:36]} 29. Rcb1 {[%emt 0:00:15]} Rc3 {[%emt 0:01:11]} 30. Nc4 {[%emt 0:00:15]} 1-0

[Event "Polugaevsky Memorial 2019"]
[Site "Samara"]
[Date "2019.07.14"]
[Round "5.2"]
[White "Kuderinov, Kirill"]
[Black "Aukhatov, Roman"]
[Result "0-1"]
[ECO "B42"]
[WhiteElo "2439"]
[BlackElo "2119"]
[Annotator "NA"]
[PlyCount "110"]
[EventDate "2019.07.10"]
[EventType "swiss"]
[EventCountry "RUS"]
[SourceTitle "playchess.com"]
[Source "ChessBase"]
[SourceQuality "1"]
[TimeControl "5400+30"]

1. e4 {[%emt 0:04:10]} c5 {[%emt 0:00:00]} 2. Nf3 {[%emt 0:00:17]} e6 {[%emt 0:00:00]} 3. d4 {[%emt 0:00:51]} cxd4 {[%emt 0:00:00]} 4. Nxd4 {[%emt 0:00:04]} a6 {[%emt 0:00:06]} 5. Bd3 {[%emt 0:01:22]} Qc7 {[%emt 0:01:10]} 6. O-O {[%emt 0:00:23]} Nf6 {[%emt 0:00:51]} 7. Nc3 {[%emt 0:06:15]} Nc6 {[%emt 0:04:16]} 8. Nxc6 {[%emt 0:04:21]} bxc6 {[%emt 0:00:07]} 9. f4 {[%emt 0:00:44]} d5 {[%emt 0:01:11]} 10. Kh1 {[%emt 0:02:34]} Be7 $11 {[%emt 0:03:43]} 11. e5 {[%emt 0:31:35]} Nd7 {[%emt 0:01:15]} 12. Na4 {[%emt 0:00:04]} c5 {[%emt 0:04:44]} 13. c4 {[%emt 0:00:10]} dxc4 {[%emt 0:02:30]} 14. Be4 {[%emt 0:01:53]} Bb7 {[%emt 0:02:19]} 15. Qc2 {[%emt 0:01:02]} Bd5 {[%emt 0:13:27]} 16. Nc3 {[%emt 0:00:07]} Nb6 {[%emt 0:00:08]} 17. f5 {[%emt 0:03:25]} Bxe4 {[%emt 0:02:42]} 18. Nxe4 {[%emt 0:02:27]} Qxe5 {[%emt 0:18:07]} 19. Bf4 {[%emt 0:02:11]} Qd5 {[%emt 0:00:07]} 20. Rad1 {[%emt 0:01:58]} Qc6 {[%emt 0:01:02]} 21. Nd6+ {[%emt 0:10:16]} Bxd6 {[%emt 0:00:08]} 22. Rxd6 {[%emt 0:00:05]} Qb7 {[%emt 0:01:04]} 23. Be5 {[%emt 0:06:29]} O-O {[%emt 0:01:32]} 24. f6 {[%emt 0:00:07]} Nd7 {[%emt 0:08:39]} 25. fxg7 {[%emt 0:02:48]} Rfd8 {[%emt 0:00:19]} 26. Qd2 {[%emt 0:01:43]} Qc7 {[%emt 0:03:50]} 27. Rd1 {[%emt 0:03:54]} Re8 {[%emt 0:05:22]} 28. Bc3 {[%emt 0:02:41]} Nb6 {[%emt 0:00:50]} 29. Ba5 {[%emt 0:00:12]} Rab8 {[%emt 0:00:12]} 30. Qf2 {[%emt 0:01:32]} Red8 {[%emt 0:03:42]} 31. Rxd8+ {[%emt 0:01:34]} Rxd8 {[%emt 0:00:06]} 32. Rf1 {[%emt 0:00:05]} Rd7 {[%emt 0:00:18]} 33. h3 {[%emt 0:00:33]} Qd6 {[%emt 0:02:11]} 34. Qf3 {[%emt 0:00:30]} Nd5 {[%emt 0:00:14]} 35. Qe4 {[%emt 0:00:37]} f5 {[%emt 0:03:24]} 36. Qe2 {[%emt 0:00:58]} Rxg7 {[%emt 0:00:34]} 37. Bd2 {[%emt 0:00:33]} Nf6 {[%emt 0:03:14]} 38. Bf4 {[%emt 0:00:57]} Qd5 {[%emt 0:00:34]} 39. Rd1 {[%emt 0:01:59]} Qe4 {[%emt 0:00:36]} 40. Rd8+ {[%emt 0:00:00]} Kf7 {[%emt 0:00:00]} 41. Qf2 {[%emt 0:00:00]} Rg6 {[%emt 0:00:00]} 42. Bd6 {[%emt 0:00:00]} Qd4 {[%emt 0:00:00]} 43. Qf3 {[%emt 0:00:00]} Ne4 {[%emt 0:00:00]} 44. Bc7 {[%emt 0:00:00]} Qxb2 {[%emt 0:00:00]} 45. Kg1 {[%emt 0:00:00]} c3 {[%emt 0:01:11]} 46. Be5 {[%emt 0:00:00]} Qxa2 {[%emt 0:02:53]} 47. Rd7+ {[%emt 0:00:00]} Ke8 {[%emt 0:00:08]} 48. Rxh7 {[%emt 0:00:00]} c2 {[%emt 0:02:43]} 49. Rh8+ {[%emt 0:00:00]} Kf7 {[%emt 0:00:25]} 50. Rh7+ {[%emt 0:00:27]} Kf8 {[%emt 0:00:57]} 51. Rh8+ {[%emt 0:06:23]} Rg8 {[%emt 0:00:09]} 52. Bd6+ {[%emt 0:00:48]} Nxd6 {[%emt 0:00:31]} 53. Qa8+ {[%emt 0:00:04]} Ke7 {[%emt 0:00:27]} 54. Rh7+ {[%emt 0:03:12]} Kf6 {[%emt 0:00:07]} 55. Rh6+ {[%emt 0:00:16]} Ke5 0-1